bitfinex-derivatives/quotes_ETHF0:USTF0_20251126
["timestamp","ask_amount","ask_price","bid_price","bid_amount"]
[1764122483059,0.97339673,2970.5,2970.4,0.89665254]
[1764122483662,0.97339673,2970.5,2970.3,1.19553672]
[1764122483864,0.5751,2970.4,2970.3,1.19553672]
[1764122484070,0.5751,2970.3,2970.2,1.19553672]
[1764122484373,0.5751,2970.3,2970.2,3.672e-05]
[1764122484573,0.5751,2969.9,2969.8,1.79334083]
[1764122485066,0.5751,2969.9,2969.8,2.33134083]
[1764122486977,0.5751,2969.9,2969.8,1.79334083]
[1764122487176,0.3139,2970.0,2969.8,1.79334083]
[1764122487177,0.3139,2970.0,2969.8,3.575e-05]
[1764122487571,0.889,2970.0,2969.9,0.8968702]
[1764122490279,0.39829673,2970.5,2969.9,1.4348702]
[1764122491478,0.97339673,2970.5,2970.4,0.538]
[1764122491777,0.00379673,2970.5,2970.4,0.538]
[1764122492571,0.57889673,2970.5,2970.4,0.538]
[1764122492971,0.00379673,2970.5,2970.4,1.4348702]
[1764122493372,0.00379673,2970.5,2970.4,0.538]
[1764122493981,0.00379673,2970.5,2970.4,2.33130508]
[1764122494283,0.00379673,2970.5,2970.4,0.538]
[1764122494478,0.00379673,2970.5,2970.4,2.33130508]
[1764122495377,0.00505136,2970.6,2970.4,0.538]
[1764122495575,0.9696,2971.5,2971.4,0.538]
[1764122495771,0.9696,2971.5,2971.0,0.8947777]
[1764122495975,0.5751,2971.1,2971.0,0.8947777]
[1764122496280,0.889,2971.0,2970.9,0.8947777]
[1764122496469,0.89148532,2971.0,2970.9,0.8947777]
[1764122497075,0.5751,2970.9,2970.8,0.8947777]
[1764122497877,0.5751,2970.8,2970.7,0.89982906]
[1764122498081,0.5751,2970.6,2970.5,0.8947777]
[1764122498279,0.5751,2970.4,2970.3,0.8947777]
[1764122499290,0.5751,2970.4,2970.3,1.4327777]
[1764122499483,0.5751,2970.4,2970.3,0.538]
[1764122499985,0.5751,2970.2,2970.1,0.54305136]
[1764122501086,0.3139,2970.5,2970.1,0.54305136]
[1764122501285,0.5751,2970.4,2970.3,1.43342893]
[1764122501488,0.5751,2970.4,2970.3,0.89542893]
[1764122504191,0.5751,2970.4,2970.3,1.44712893]
[1764122504381,0.3139,2970.5,2970.4,0.5517]
[1764122504586,0.8756,2970.5,2970.4,0.5517]
[1764122505291,0.8756,2970.5,2970.4,1.44712893]
[1764122505684,0.8756,2970.5,2970.4,0.5517]
[1764122505884,0.8756,2970.5,2970.4,1.44830219]
[1764122506192,0.31638532,2971.0,2970.4,0.5517]
[1764122506393,0.31638532,2971.0,2970.5,0.89656964]
[1764122506587,0.5617,2970.6,2970.5,1.44826964]
[1764122507487,0.5617,2970.6,2970.5,0.89656964]
[1764122507792,0.8572,2970.5,2970.4,0.89656964]
[1764122507995,0.31638532,2971.0,2970.4,1.44826964]
[1764122508294,0.8572,2970.5,2970.4,0.89656964]
[1764122510489,0.8382,2970.0,2969.8,3.575e-05]
[1764122510795,0.5617,2970.0,2969.9,0.5517]
[1764122511600,0.2955,2970.5,2969.8,3.575e-05]
[1764122513899,0.90694067,2970.8,2969.8,3.575e-05]
[1764122514300,0.90694067,2970.8,2969.8,1.19469995]
[1764122520002,0.5617,2970.8,2970.7,0.5517]
[1764122521694,0.00248532,2971.0,2970.9,0.5197]
[1764122521898,1.20809236,2971.6,2970.5,1.4938642]
[1764122521899,1.18344067,2972.0,2971.1,0.5197]
[1764122522201,0.4984,2971.2,2971.1,0.5197]
[1764122522396,0.4984,2971.1,2971.0,0.8206]
[1764122522592,1.18344067,2972.0,2971.0,0.8206]
[1764122522798,1.18344067,2972.0,2971.0,2.01406974]
[1764122523105,0.00505136,2971.8,2971.2,0.00505136]
[1764122525206,0.4984,2971.3,2971.2,0.52475136]
[1764122525398,0.4984,2971.3,2971.2,0.00505136]
[1764122528211,0.4984,2971.3,2971.2,0.52475136]
[1764122528706,0.4984,2971.3,2971.2,0.00505136]
[1764122533717,0.4857,2970.6,2970.5,0.5148]
[1764122534309,0.4857,2970.6,2970.3,1.19346974]
[1764122534310,0.4857,2970.4,2970.3,0.5148]
[1764122535906,0.4857,2970.2,2970.1,0.51816754]
[1764122537908,0.2415,2971.0,2970.5,0.3013]
[1764122538209,0.4857,2971.0,2970.9,0.5148]
[1764122538408,0.4857,2971.0,2970.5,0.3013]
[1764122539208,0.4857,2971.0,2970.9,0.5148]
[1764122540811,0.4857,2971.5,2971.4,0.5148]
[1764122541009,0.00505136,2971.8,2971.0,0.3013]
[1764122541010,0.00505136,2971.8,2971.5,0.3013]
[1764122541212,0.2988,2971.5,2971.0,0.3013]
[1764122542012,0.4857,2971.1,2971.0,0.8161]
[1764122542517,0.2988,2971.5,2971.0,0.8161]
[1764122542719,0.4857,2971.1,2971.0,0.8161]
[1764122543314,0.2988,2971.5,2971.0,0.8161]
[1764122546008,0.00505136,2971.8,2971.0,0.8161]
[1764122549118,0.4857,2971.1,2971.0,0.8161]
[1764122549418,0.4857,2971.1,2971.0,2.00956974]
[1764122549818,0.2988,2971.5,2971.0,2.00956974]
[1764122550014,0.2988,2971.5,2971.0,0.8161]
[1764122550414,0.4857,2971.1,2971.0,0.8161]
[1764122551726,0.2988,2971.5,2971.0,0.8161]
[1764122552820,0.00505136,2971.8,2971.0,0.8161]
[1764122553124,0.00505136,2971.8,2971.0,2.00956974]
[1764122558825,0.49075136,2971.8,2971.7,0.5148]
[1764122559421,0.4857,2971.6,2971.5,1.19346974]
[1764122559623,0.00505136,2971.8,2971.3,0.5148]
[1764122559624,0.4857,2971.4,2971.3,0.5148]
[1764122559821,0.17338136,2971.8,2971.3,0.5148]
[1764122561523,0.4857,2971.4,2971.1,1.19346974]
[1764122561722,0.4857,2971.4,2971.3,0.4893]
[1764122562028,0.4857,2971.6,2971.5,0.7695]
[1764122562221,0.4857,2971.2,2971.1,1.68276974]
[1764122562416,0.4857,2971.2,2971.1,0.4893]
[1764122563720,0.00505136,2971.8,2971.1,0.4893]
[1764122563922,1.79673729,2972.9,2972.5,0.2802]
[1764122564226,0.2722,2973.5,2973.0,0.4893]
[1764122564227,0.4857,2973.1,2973.0,0.4893]
[1764122564422,10.5292,2973.9,2973.0,0.7695]
[1764122564625,0.1682,2973.9,2973.0,0.7695]
[1764122564818,0.00505136,2973.7,2973.2,0.00505136]
[1764122565332,0.00505136,2973.7,2973.6,0.4893]
[1764122565828,0.49075136,2973.7,2973.6,0.4893]
[1764122566329,0.00505136,2973.7,2973.6,0.4893]
[1764122568627,1.79673729,2975.3,2973.8,0.4893]
[1764122568832,0.16813,2975.3,2973.8,0.4893]
[1764122569628,0.00505136,2974.7,2973.8,0.4893]
[1764122570122,0.00505136,2974.7,2974.6,0.4893]
[1764122570322,0.49075136,2974.7,2974.6,0.4893]
[1764122570925,0.00505136,2974.7,2974.6,0.4893]
[1764122571920,0.49075136,2974.7,2974.6,0.4893]
[1764122572127,0.4857,2974.6,2974.0,0.2802]
[1764122572423,0.4857,2974.6,2974.5,0.7695]
[1764122572934,0.49075136,2974.7,2974.6,0.4893]
[1764122573131,0.4857,2974.1,2973.5,0.2802]
[1764122573533,0.2722,2974.0,2973.5,0.2802]
[1764122573733,0.4857,2973.6,2973.5,0.2802]
[1764122573935,0.2722,2974.0,2973.5,0.2802]
[1764122573936,0.2722,2974.0,2973.5,0.7695]
[1764122574129,0.2722,2974.5,2973.5,0.7695]
[1764122574435,0.16818,2974.4,2973.5,0.7695]
[1764122575231,0.4857,2973.6,2973.5,0.7695]
[1764122575733,0.4857,2973.6,2973.5,0.4893]
[1764122576822,0.4857,2973.6,2973.5,0.7695]
[1764122577027,0.2722,2974.0,2973.5,0.7695]
[1764122579740,0.4857,2973.6,2973.2,0.00505136]
[1764122579925,0.4857,2973.6,2973.5,0.4893]
[1764122580233,0.4857,2973.6,2973.5,0.7695]
[1764122580439,0.4404,2974.0,2973.5,0.7695]
[1764122581232,0.1682,2974.0,2973.5,0.7695]
[1764122582334,0.4754,2973.6,2973.5,0.4893]
[1764122582533,0.4754,2973.6,2973.2,0.00505136]
[1764122583141,0.4754,2973.6,2973.5,0.7424]
[1764122590742,0.4754,2973.6,2973.5,0.461]
[1764122590945,0.4754,2973.6,2973.5,0.7424]
[1764122591739,0.4754,2973.6,2973.5,0.461]
[1764122592038,0.4754,2973.6,2973.2,0.00505136]
[1764122592039,0.4892,2973.3,2973.2,0.00505136]
[1764122592745,0.4892,2973.3,2973.2,0.46385136]
[1764122593248,0.4892,2973.3,2973.2,0.00505136]
[1764122593548,0.4892,2973.3,2973.2,0.46385136]
[1764122593849,0.4892,2973.3,2973.2,0.00505136]
[1764122594347,0.4892,2973.3,2973.2,0.46385136]
[1764122595947,0.4892,2973.3,2973.2,0.00505136]
[1764122596247,0.4892,2973.3,2973.2,0.46385136]
[1764122596542,0.16823,2973.5,2973.4,0.4588]
[1764122597047,0.65743,2973.5,2973.4,0.4588]
[1764122598139,0.16823,2973.5,2973.4,0.4588]
[1764122598341,1.49343387,2974.0,2973.2,0.00505136]
[1764122598342,0.2859,2974.0,2973.5,0.2815]
[1764122598842,0.4892,2973.6,2973.5,0.7403]
[1764122599539,0.4541,2974.0,2973.5,0.7403]
[1764122600038,0.4892,2973.6,2973.5,0.7403]
[1764122604352,1.66163387,2974.0,2973.5,0.7403]
[1764122605356,1.20753387,2973.9,2973.5,0.7403]
[1764122607254,1.69673387,2973.9,2973.8,0.4588]
[1764122607450,1.69673387,2973.9,2973.3,0.88691381]
[1764122607451,0.4892,2973.4,2973.3,0.88691381]
[1764122607656,0.4892,2973.3,2973.2,0.46385136]
[1764122608956,0.4892,2973.3,2973.2,0.00505136]
[1764122609456,0.4892,2973.3,2973.2,0.46385136]
[1764122611763,0.65744,2973.3,2973.2,0.00505136]
[1764122612355,0.65745,2973.1,2973.0,0.00301451]
[1764122614659,1.86498387,2973.1,2973.0,0.00301451]
[1764122615058,1.86498387,2973.1,2973.0,0.74331451]
[1764122615365,0.65745,2973.1,2973.0,0.46181451]
[1764122615563,1.20753387,2973.3,2973.2,0.4588]
[1764122615859,3.5472,2973.4,2973.3,0.4588]
[1764122618461,0.4892,2973.1,2973.0,0.74331451]
[1764122619563,0.4892,2973.1,2973.0,0.46181451]
[1764122620264,0.4892,2973.1,2973.0,0.74331451]
[1764122620465,3.058,2973.4,2973.3,0.4588]
[1764122620670,3.5472,2973.4,2973.3,0.4588]
[1764122623972,4.45416694,2973.4,2973.3,0.4588]
[1764122624671,3.5472,2973.4,2973.3,0.4588]
[1764122624864,3.5472,2973.4,2973.0,0.28451451]
[1764122625067,0.4463,2973.1,2973.0,0.75181451]
[1764122625461,3.058,2973.4,2973.0,0.75181451]
[1764122627575,3.5043,2973.4,2973.3,0.4673]
[1764122627776,3.5043,2973.4,2973.0,0.28451451]
[1764122630177,0.4463,2973.1,2973.0,0.47031451]
[1764122630377,0.4463,2973.1,2973.0,0.75561451]
[1764122630769,3.058,2973.4,2973.0,0.75561451]
[1764122630975,0.4463,2973.1,2973.0,0.75561451]
[1764122634276,4.41126694,2973.4,2973.3,0.4673]
[1764122635283,3.5043,2973.4,2973.3,0.4673]
[1764122636186,3.5043,2973.4,2973.0,1.17522832]
[1764122636187,4.41126694,2973.4,2973.0,0.28831451]
[1764122636387,4.41126694,2973.4,2973.0,1.17522832]
[1764122636580,0.4463,2973.1,2973.0,1.64252832]
[1764122636781,0.4463,2973.1,2973.0,0.47031451]
[1764122637175,3.96496694,2973.4,2973.0,1.64252832]
[1764122637382,1.35326694,2973.4,2973.3,0.4673]
[1764122638982,1.35326694,2973.4,2973.0,1.17522832]
[1764122639588,0.4463,2973.4,2973.0,1.17522832]
[1764122639791,0.4463,2973.4,2973.3,0.4673]
[1764122641995,0.4601,2973.1,2973.0,0.88992832]
[1764122642194,0.4601,2973.1,2973.0,0.00301451]
[1764122643294,1.83588387,2973.1,2973.0,0.00301451]
[1764122643492,0.62835,2973.1,2973.0,0.00301451]
[1764122644188,1.83887166,2973.1,2973.0,0.00301451]
[1764122646700,1.53590139,2973.1,2973.0,0.76421451]
[1764122647294,0.4601,2973.1,2973.0,0.76421451]
[1764122647795,0.90755139,2973.4,2973.0,0.76421451]
[1764122648690,0.4601,2973.1,2973.0,0.76421451]
[1764122649284,0.4601,2973.1,2973.0,0.49031451]
[1764122649697,0.4601,2973.1,2973.0,0.00301451]
[1764122649889,1.53590139,2973.1,2973.0,0.00301451]
[1764122650088,1.83887166,2973.1,2973.0,0.00301451]
[1764122650500,0.4601,2972.1,2972.0,0.88691381]
[1764122650693,0.4601,2972.1,2972.0,0.4873]
[1764122650897,0.4601,2972.0,2971.9,1.37421381]
[1764122651298,0.4601,2972.0,2971.9,0.4873]
[1764122651498,0.46315089,2972.0,2971.9,0.48988467]
[1764122653393,0.46315089,2972.0,2971.9,0.00258467]
[1764122655101,0.00305089,2972.0,2971.9,0.48158467]
[1764122655601,0.49545089,2972.0,2971.9,0.48158467]
[1764122655988,0.00305089,2972.0,2971.9,0.48158467]
[1764122656194,0.49545089,2972.0,2971.9,0.00258467]
[1764122656394,0.76665089,2972.0,2971.9,0.00258467]
[1764122657901,0.4924,2970.9,2970.8,0.88691381]
[1764122658105,0.4924,2970.9,2970.8,0.479]
[1764122658405,0.38664,2971.5,2970.8,0.479]
[1764122658797,0.38664,2971.5,2970.8,0.48268422]
[1764122663907,0.38724,2971.5,2970.8,0.48268422]
[1764122666305,0.38724,2971.5,2970.8,0.00368422]
[1764122666306,0.4924,2970.9,2970.8,0.00368422]
[1764122667309,0.4924,2970.9,2970.8,0.48268422]
[1764122667504,0.16837,2971.0,2970.9,0.479]
[1764122667710,0.66077,2971.0,2970.9,0.479]
[1764122667907,0.66077,2971.0,2970.8,0.00368422]
[1764122667908,0.4924,2970.9,2970.8,0.00368422]
[1764122668605,0.66077,2970.9,2970.8,0.00368422]
[1764122668808,0.16838,2970.8,2970.0,0.2739]
[1764122669009,0.00504261,2970.7,2970.0,0.2739]
[1764122669710,0.00504261,2970.7,2970.0,0.27691672]
[1764122669910,0.4924,2970.1,2970.0,0.75591672]
[1764122670111,0.4924,2970.1,2970.0,0.00301672]
[1764122670312,0.4924,2970.1,2970.0,0.48201672]
[1764122670506,0.4924,2970.1,2970.0,0.76501672]
[1764122671418,0.2712,2970.5,2970.0,0.76501672]
[1764122672021,0.4924,2970.1,2970.0,0.76501672]
[1764122672815,0.4924,2970.1,2970.0,0.00301672]
[1764122675933,0.4924,2970.1,2970.0,0.48201672]
[1764122676129,0.6608,2970.4,2970.3,0.479]
[1764122676431,0.49744261,2970.7,2970.6,0.479]
[1764122685341,0.4746,2970.6,2970.1,0.88691381]
[1764122685641,0.2187,2970.5,2970.0,0.28601672]
[1764122686044,0.16839,2970.6,2970.5,0.2894]
[1764122686240,0.64299,2970.6,2970.5,0.7574]
[1764122691944,0.64299,2970.6,2970.0,1.17293053]
[1764122693538,0.2159,2970.5,2970.0,1.17293053]
[1764122693836,0.3843,2970.5,2970.0,1.17293053]
[1764122694240,0.4746,2970.1,2970.0,1.64093053]
[1764122694443,0.4746,2970.1,2970.0,0.75401672]
[1764122694642,0.4746,2970.1,2970.0,0.47101672]
[1764122695941,0.16841,2970.3,2970.2,0.468]
[1764122696143,0.64301,2970.3,2970.2,0.468]
[1764122697847,0.4746,2970.1,2970.0,0.00301672]
[1764122698034,0.4746,2970.1,2970.0,0.47101672]
[1764122698944,0.4746,2970.1,2970.0,0.76041672]
[1764122699538,0.16842,2970.2,2970.1,0.468]
[1764122700440,1.38211647,2970.6,2970.5,0.468]
[1764122702244,1.38211647,2970.6,2970.5,0.7599]
[1764122702445,0.17343261,2970.7,2970.5,0.7599]
[1764122702446,1.08094908,2970.7,2970.6,0.4812]
[1764122702647,0.17343261,2970.7,2970.6,0.4812]
[1764122702950,0.00504261,2970.7,2970.6,0.4812]
[1764122703148,0.00504261,2970.7,2970.6,1.36811381]
[1764122703544,0.00504261,2970.7,2970.6,0.4812]
[1764122703744,1.136,2971.0,2970.9,0.4812]
[1764122703949,1.55676377,2971.2,2971.1,0.4812]
[1764122704954,2.02126377,2971.2,2971.1,0.4812]
[1764122706551,1.55676377,2971.2,2971.1,0.4812]
[1764122707557,0.63789261,2971.4,2971.3,0.4812]
[1764122707757,0.63789261,2971.4,2971.0,0.2919]
[1764122707758,0.4645,2971.1,2971.0,0.7731]
[1764122710649,0.17339261,2971.4,2971.0,0.7731]
[1764122711260,0.4645,2971.1,2971.0,0.7731]
[1764122713354,0.17339261,2971.4,2971.0,0.7731]
[1764122713963,0.4541,2971.1,2971.0,0.7731]
[1764122714361,0.17339261,2971.4,2971.0,0.7731]
[1764122715662,0.62749261,2971.4,2971.3,0.4681]
[1764122715862,0.62749261,2971.4,2971.0,0.2919]
[1764122716862,0.4541,2971.1,2971.0,0.76]
[1764122717062,0.4541,2971.1,2971.0,0.4681]
[1764122717262,0.4541,2971.1,2971.0,0.7506]
[1764122717659,0.4541,2971.1,2971.0,0.4681]
[1764122718165,0.4541,2971.1,2970.6,0.88691381]
[1764122719070,0.4541,2971.1,2970.5,1.17881381]
[1764122722177,0.2713,2971.0,2970.5,1.17881381]
[1764122722467,0.16836,2971.1,2970.5,0.2919]
[1764122722673,0.2713,2971.0,2970.5,0.2919]
[1764122727677,0.4863,2970.6,2970.5,0.754]
[1764122728578,0.4863,2970.5,2970.4,0.00504261]
[1764122728770,0.4863,2970.5,2970.4,0.46714261]
[1764122730574,0.7576,2970.5,2970.4,0.00504261]
[1764122731570,0.926,2970.5,2970.4,0.00504261]
[1764122731772,0.1684,2970.5,2970.4,0.46714261]
[1764122731976,1.07587647,2971.1,2970.9,0.4621]
[1764122732174,0.16836,2971.1,2971.0,0.7343]
[1764122732876,0.90751647,2971.3,2971.2,0.4621]
[1764122733079,1.39381647,2971.3,2971.2,0.4621]
[1764122734067,0.4863,2971.1,2971.0,0.7343]
[1764122734273,1.39381647,2971.3,2971.2,0.4621]
[1764122734874,0.17339261,2971.4,2971.3,0.4621]
[1764122734875,1.08090908,2971.4,2971.3,0.4621]
[1764122735672,1.56720908,2971.4,2971.3,0.4621]
[1764122736883,0.65969261,2971.4,2971.3,0.4621]
[1764122737883,0.17339261,2971.4,2971.3,0.4621]
[1764122741781,0.65969261,2971.4,2971.3,0.4621]
[1764122741977,0.65969261,2971.4,2971.0,0.2722]
[1764122742192,0.65969261,2971.4,2971.3,0.4671]
[1764122743978,0.17339261,2971.4,2971.3,0.4671]
[1764122744179,0.64089261,2971.4,2971.3,0.4671]
[1764122744581,0.00504261,2971.4,2971.3,0.4671]
[1764122746686,0.47254261,2971.4,2971.3,0.4671]
[1764122746985,0.00504261,2971.4,2971.3,0.4671]
[1764122749485,0.47254261,2971.4,2971.3,0.4671]
[1764122749887,0.00504261,2971.4,2971.3,0.4671]
[1764122762688,0.00504261,2971.4,2971.3,0.4524]
[1764122767193,0.00504261,2971.4,2971.3,1.33931381]
[1764122770690,0.45894261,2971.4,2971.3,1.33931381]
[1764122770897,0.7276,2971.0,2970.6,1.19346974]
[1764122771095,0.4539,2971.0,2970.9,0.4524]
[1764122771390,0.4611,2970.6,2970.5,1.95116974]
[1764122771593,0.4611,2970.5,2970.4,0.00504261]
[1764122772688,0.7324,2970.5,2970.4,0.00504261]
[1764122772889,0.4611,2970.1,2970.0,0.00301672]
[1764122773493,0.4611,2970.1,2970.0,0.75761672]
[1764122774291,0.4611,2970.1,2970.0,0.00301672]
[1764122774698,0.4611,2970.1,2970.0,0.75761672]
[1764122775399,0.4611,2970.1,2970.0,0.00301672]
[1764122776000,0.4397,2970.5,2970.0,0.75761672]
[1764122778004,0.4611,2970.1,2970.0,0.75761672]
[1764122778897,0.4611,2970.1,2970.0,0.00301672]
[1764122779104,0.4611,2970.1,2970.0,0.75761672]
[1764122781997,0.4397,2970.5,2970.0,0.75761672]
[1764122782406,0.4611,2970.1,2970.0,0.00301672]
[1764122782798,0.4611,2970.1,2970.0,0.75761672]
[1764122785299,0.62951,2970.4,2970.3,0.4855]
[1764122786002,0.4611,2970.1,2970.0,0.75761672]
[1764122786700,0.4611,2970.1,2970.0,0.00301672]
[1764122788310,0.4611,2970.1,2970.0,0.48851672]
[1764122789005,0.4611,2970.1,2970.0,0.75761672]
[1764122791714,0.16841,2970.2,2970.1,0.4855]
[1764122792101,1.16938,2970.8,2970.1,0.4855]
[1764122792311,0.16838,2970.7,2970.1,0.4855]
[1764122792610,1.001,2970.8,2970.1,0.4855]
[1764122792611,0.16839,2970.6,2970.1,0.4855]
[1764122792810,0.16839,2970.6,2970.5,0.7546]
[1764122792811,0.62949,2970.6,2970.5,0.7546]
[1764122793110,0.16839,2970.6,2970.5,0.7546]
[1764122796111,0.62949,2970.6,2970.5,0.7546]
[1764122797511,0.62949,2970.6,2970.5,0.4855]
[1764122797915,0.62949,2970.6,2970.0,0.27211672]
[1764122800111,0.62949,2970.6,2970.0,1.46558646]
[1764122800306,0.2713,2970.5,2970.0,1.46558646]
[1764122800707,0.16839,2970.6,2970.5,0.7546]
[1764122802108,0.62949,2970.6,2970.5,0.4855]
[1764122802308,0.62949,2970.6,2970.0,1.46558646]
[1764122804010,0.16839,2970.6,2970.5,0.7744]
[1764122805715,1.21652181,2971.4,2971.3,0.4871]
[1764122805914,0.4465,2971.1,2971.0,0.7744]
[1764122807115,0.45154261,2971.4,2971.3,0.4871]
[1764122807319,0.00504261,2971.4,2971.3,0.4871]
[1764122808416,0.45154261,2971.4,2971.3,0.4871]
[1764122810817,0.45154261,2971.4,2971.0,0.2873]
[1764122811018,0.45154261,2971.4,2971.3,0.4871]
[1764122812126,0.45154261,2971.4,2971.0,0.2873]
[1764122812723,0.45154261,2971.4,2971.3,0.4871]
[1764122816222,0.00504261,2971.4,2971.3,0.4871]
[1764122817321,0.45154261,2971.4,2971.3,0.4871]
[1764122819332,0.00504261,2971.4,2971.3,0.4871]
[1764122821836,0.17136089,2972.0,2971.9,0.4556]
[1764122822334,0.2777,2971.5,2971.1,0.4556]
[1764122822528,0.2777,2971.5,2971.4,0.4556]
[1764122822529,0.4582,2971.5,2971.4,0.4556]
[1764122822930,0.4582,2971.3,2971.2,0.46064261]
[1764122824532,0.16834,2971.6,2971.5,0.7385]
[1764122825236,0.62654,2971.6,2971.5,0.4556]
[1764122825440,0.62654,2971.6,2971.5,0.7385]
[1764122826936,0.16834,2971.6,2971.5,0.7385]
[1764122827341,0.00504261,2971.7,2971.6,0.4556]
[1764122828338,0.46324261,2971.7,2971.6,0.4556]
[1764122829337,0.4582,2971.6,2971.2,0.00504261]
[1764122830747,0.4582,2971.6,2971.5,0.4556]
[1764122833350,0.4582,2971.6,2971.5,0.7423]
[1764122834039,0.00504261,2971.7,2971.6,0.4893]
[1764122834242,0.48204261,2971.7,2971.6,0.4893]
[1764122836343,0.00504261,2971.7,2971.6,0.4893]
[1764122838747,1.55031182,2972.8,2971.6,0.4893]
[1764122838748,1.2114792,2972.3,2972.2,0.4893]
[1764122838947,3.15678977,2973.2,2973.0,0.4893]
[1764122838948,1.6884792,2973.1,2973.0,0.4893]
[1764122839449,0.477,2973.1,2973.0,0.4893]
[1764122839947,0.4808498,2973.1,2973.0,0.49269766]
[1764122840137,0.4808498,2973.1,2973.0,0.00339766]
[1764122841342,0.4808498,2973.1,2973.0,0.49269766]
[1764122841541,0.4808498,2973.1,2973.0,0.77939766]
[1764122844044,0.4808498,2973.1,2973.0,0.00339766]
[1764122845852,0.477,2972.9,2972.8,0.00504261]
[1764122846152,0.16827,2972.8,2972.0,0.2867]
[1764122847053,0.64527,2972.8,2972.7,0.4893]
[1764122847348,0.64527,2972.8,2972.1,0.00504261]
[1764122848849,0.16827,2972.8,2972.7,0.4893]
[1764122850355,0.64527,2972.8,2972.7,0.4893]
[1764122850752,0.477,2972.6,2972.5,0.4893]
[1764122850960,0.2757,2972.5,2972.1,0.00504261]
[1764122851256,0.7527,2972.5,2972.4,0.4893]
[1764122851457,0.477,2972.5,2972.4,0.4893]
[1764122856058,0.477,2972.2,2972.1,0.49434261]
[1764122858263,0.44398,2972.5,2972.1,0.49434261]
[1764122858463,0.64528,2972.5,2972.4,0.4893]
[1764122858654,0.16828,2972.5,2972.4,0.4893]
[1764122859751,0.194,2973.0,2972.4,0.4893]
[1764122859956,0.194,2973.0,2972.9,0.4893]
[1764122859957,0.477,2973.0,2972.9,0.4893]
[1764122860157,0.1720998,2973.1,2973.0,0.776]
[1764122862958,0.0038498,2973.1,2973.0,0.776]
[1764122866063,0.4483,2972.6,2972.5,0.75]
[1764122866563,0.4483,2972.6,2972.5,0.4633]
[1764122866768,0.43686,2973.0,2972.3,0.89487985]
[1764122866769,0.4483,2972.4,2972.3,1.35817985]
[1764122866969,0.4483,2972.4,2972.3,0.4633]
[1764122867370,0.16827,2972.8,2972.3,0.4633]
[1764122868274,1.07461092,2972.8,2972.3,0.4633]
[1764122872168,0.16827,2972.8,2972.7,0.4633]
[1764122872765,1.215329,2973.1,2973.0,0.7432]
[1764122872766,2.12166992,2973.1,2973.0,0.7432]
[1764122872969,0.0038498,2973.1,2973.0,0.7432]
[1764122873576,0.4521498,2973.1,2973.0,0.7432]
[1764122873979,0.4521498,2973.1,2973.0,0.4633]
[1764122874275,0.4521498,2973.1,2973.0,0.7432]
[1764122875676,0.4521498,2973.1,2973.0,0.4633]
[1764122880580,0.4521498,2973.1,2973.0,0.7432]
[1764122881175,0.4521498,2973.1,2973.0,0.4633]
[1764122881381,0.2746,2973.0,2972.5,1.17300951]
[1764122881577,0.2746,2973.0,2972.5,0.2799]
[1764122882187,0.7653,2973.0,2972.9,0.447]
[1764122882485,0.4907,2973.0,2972.9,0.447]
[1764122882785,0.6627998,2973.1,2973.0,0.7419]
[1764122883183,0.6627998,2973.1,2973.0,0.447]
[1764122885988,0.1720998,2973.1,2973.0,0.7419]
[1764122886189,0.0038498,2973.1,2973.0,0.7419]
[1764122891994,0.4499498,2973.1,2972.7,0.89310951]
[1764122892295,0.6181998,2973.1,2972.6,0.89310951]
[1764122892992,0.6181998,2973.1,2973.0,0.48]
[1764122894394,1.52454072,2973.1,2973.0,0.48]
[1764122894796,0.6181998,2973.1,2973.0,0.48]
[1764122895997,0.6181998,2973.1,2972.5,0.2799]
[1764122896196,1.35330986,2973.0,2972.9,0.48]
[1764122896399,0.90720986,2973.0,2972.9,0.48]
[1764122899310,1.35330986,2973.0,2972.9,0.48]
[1764122901298,0.4461,2973.0,2972.9,0.48]
[1764122901497,0.4461,2972.3,2972.2,0.797]
[1764122901705,0.4461,2972.2,2972.1,0.48504261]
[1764122905006,0.90821195,2972.5,2972.4,0.48]
[1764122905198,0.90821195,2972.6,2972.5,0.7679]
[1764122905400,0.90821195,2972.7,2972.6,0.48]
[1764122906303,1.35431195,2972.7,2972.6,0.48]
[1764122906507,0.4461,2972.7,2972.6,0.48]
[1764122907009,1.35311834,2972.7,2972.6,0.48]
[1764122908100,0.90701834,2972.9,2972.8,0.48]
[1764122908304,1.38304906,2973.1,2972.5,0.2879]
[1764122908305,0.0038498,2973.1,2973.0,0.7679]
[1764122919616,0.77358195,2973.1,2973.0,0.7679]
[1764122920215,1.21968195,2973.1,2973.0,0.48]
[1764122920412,0.77358195,2973.1,2973.0,0.7679]
[1764122920814,1.21968195,2973.1,2973.0,0.7679]
[1764122921009,1.21968195,2973.1,2973.0,0.48]
[1764122921913,0.77358195,2973.1,2973.0,0.7564]
[1764122923522,1.24718195,2973.1,2973.0,0.7564]
[1764122925121,0.77358195,2973.1,2973.0,0.7564]
[1764122929224,0.77315956,2973.1,2973.0,0.7564]
[1764122931428,1.24675956,2973.1,2972.6,0.797]
[1764122931622,1.04100976,2973.0,2972.6,0.797]
[1764122931823,0.78105609,2972.9,2972.6,0.797]
[1764122932024,0.4736,2972.7,2972.6,1.2702]
[1764122932227,0.2717,2973.0,2972.6,1.2702]
[1764122932527,0.4736,2972.6,2972.2,0.797]
[1764122932729,0.78126536,2972.5,2972.1,0.00504261]
[1764122932924,0.78126536,2972.5,2972.3,0.4732]
[1764122932925,1.25486536,2972.4,2972.3,0.4732]
[1764122933133,0.4736,2972.2,2972.1,0.47824261]
[1764122938036,0.4736,2972.5,2972.4,0.4732]
[1764122938338,1.52684305,2972.5,2972.1,0.00504261]
[1764122938636,0.4736,2972.2,2972.1,0.47824261]
[1764122940836,1.25483636,2972.2,2972.1,0.47824261]
[1764122941038,0.4736,2972.2,2972.1,0.47824261]
[1764122941942,1.07529834,2972.6,2972.5,0.7721]
[1764122942142,2.29976596,2972.6,2972.5,0.7721]